[Event "Rapid Shavuot-A 2023"]
[Site "Ramat Gan"]
[Date "2023.05.25"]
[Round "2.18"]
[White "Michaeli, Omri"]
[Black "Iliaguev, Daniel"]
[Result "1-0"]
[ECO "C17"]
[WhiteElo "1874"]
[BlackElo "2134"]
[Annotator "TA"]
[PlyCount "141"]
[EventDate "2023.05.19"]
[EventType "swiss"]
[EventCountry "ISR"]
[SourceTitle "playchess.com"]
[Source "ChessBase"]
[SourceQuality "1"]
[TimeControl "900+5"]

{[%evp 11,141,-64,-69,-61,-62,-79,-64,-66,-53,-120,-127,-121,-114,-120,-111,-117,-115,-159,-147,-148,-147,-148,-169,-155,-102,-171,-161,-172,-160,-174,-174,-175,-138,-186,-188,-181,-175,-187,-172,-208,-201,-210,-212,-190,-158,-175,-175,-170,-187,-266,-205,-205,0,0,0,-39,-16,-55,24,13,36,42,92,16,117,118,182,173,173,173,364,375,369,362,361,357,316,268,422,0,354,368,358,354,354,353,320,320,304,184,138,69,72,89,102,86,764,557,992,738,987,643,862,789,1219,1432,1245,930,1558,1528,2052,1805,1566,1554,29966,12810,29980,29981,29981,29982,29982,29983,29983,29984,29984,29985,29988,29989,29989,29988,29992,29993]} 1. e4 {[%emt 0:00:02]} e6 {[%emt 0:00:02]} 2. d4 {[%emt 0:00:02]} d5 {[%emt 0:00:01]} 3. Nc3 {[%emt 0:00:02]} Bb4 {[%emt 0:00:01]} 4. e5 {[%emt 0:00:02]} Ne7 {[%emt 0:00:03]} 5. Qg4 {[%emt 0:00:10]} c5 {[%emt 0:00:01]} 6. a3 {[%emt 0:00:14]} Qa5 {[%emt 0:00:17]} 7. Bd2 {[%emt 0:01:35] C17: French: 3 Nc3 Bb4 4 e5 c5 sidelines.} (7. axb4 Qxa1 8. Kd1 (8. Nge2 $2 cxd4 9. Nb5 O-O $19) 8... O-O 9. bxc5 b6 $17) 7... cxd4 {[%emt 0:00:03]} 8. Qxd4 {[%emt 0:00:59]} (8. axb4 Qxa1+ 9. Nd1 Ng6 $17) (8. Qxg7 $2 Rg8 9. Qxh7 (9. axb4 $2 Qxa1+ 10. Nd1 Rxg7 $19) (9. Bb5+ $2 Bd7 $19) 9... dxc3 $19) 8... Nbc6 {[%emt 0:00:06]} 9. Qd3 {[%emt 0:00:31] Black is slightly better.} Nxe5 {[%emt 0:01:21] [#]} 10. Qb5+ $146 {[%emt 0:00:58]} (10. Qg3 $1 $15 d4 11. Bb5+ Bd7 12. Qxe5 (12. Qxg7 $2 N7g6 $19) 12... dxc3 13. bxc3 Qxb5 14. Qxb5 Bxb5 15. cxb4) ({Predecessor:} 10. Qg3 d4 11. Bb5+ Kf8 12. axb4 Qxa1+ 13. Nd1 f6 14. f4 Nf5 15. Qb3 Ng4 16. Nf3 {0-1 Butunoi,A (2403)-Ertl,J (2234) AUT-chT2M 0708 2007 (8.2)}) 10... N5c6 $17 {[%emt 0:00:04]} 11. O-O-O {[%emt 0:00:46]} Qxb5 {[%emt 0:00:59]} 12. Nxb5 {[%emt 0:00:31]} Bxd2+ {[%emt 0:00:04]} 13. Rxd2 {[%emt 0:00:02]} O-O {[%emt 0:00:09]} 14. Nf3 {[%emt 0:00:32]} Bd7 {[%emt 0:01:10]} 15. h4 {[%emt 0:00:24]} a6 {[%emt 0:01:45]} 16. Nc3 {[%emt 0:00:46]} Rac8 {[%emt 0:02:14]} 17. h5 {[%emt 0:00:08]} Rfd8 {[%emt 0:00:27]} (17... f6 $142 18. Kb1 Na5) 18. Rh4 {[%emt 0:01:25]} (18. h6 $17 {might work better.}) 18... b5 {[%emt 0:00:16]} 19. Kb1 {[%emt 0:00:30]} Be8 {[%emt 0:00:59]} 20. g3 {[%emt 0:01:24]} h6 {[%emt 0:03:15]} 21. Bh3 {[%emt 0:00:27]} Na5 {[%emt 0:00:02]} 22. Ne5 {[%emt 0:00:59]} (22. Na2 $17) 22... Nc4 $19 {[%emt 0:00:15]} 23. Nxc4 {[%emt 0:00:04]} bxc4 {[%emt 0:00:02]} ({Inferior is} 23... Rxc4 24. Rxc4 bxc4 25. g4 $17) 24. Ne2 {[%emt 0:00:35]} Rb8 {[%emt 0:00:18]} 25. Ka2 {[%emt 0:00:21]} e5 {[%emt 0:00:28]} 26. f4 {[%emt 0:00:20]} f6 {[%emt 0:00:14]} 27. Be6+ {[%emt 0:00:53]} Bf7 {[%emt 0:00:02]} 28. Bxf7+ {[%emt 0:00:06]} Kxf7 {[%emt 0:00:01]} 29. fxe5 {[%emt 0:00:02]} fxe5 {[%emt 0:00:02]} 30. Ng1 {[%emt 0:00:51]} (30. Nc3 $142) 30... Rbc8 {[%emt 0:01:55]} 31. Nf3 {[%emt 0:00:07]} c3 $2 {[%emt 0:00:52]} (31... Ke6 $19 {White must now prevent ...Rf8.} 32. Rg4 Rf8) 32. Nxe5+ $11 {[%emt 0:00:21]} Kg8 $1 {[%emt 0:00:08]} 33. Re2 {[%emt 0:00:24]} cxb2 {[%emt 0:00:02] And now ...Nf5 would win.} (33... Nf5 $5 {[%cal Rf5h4]} 34. Rf4 Nxg3 $15) 34. Kxb2 {[%emt 0:00:01]} (34. Rf4 {is interesting.} Rb8 35. Rb4 d4 36. Kxb2 Nd5 37. Rxb8 Rxb8+ 38. Kc1) 34... Rb8+ {[%emt 0:00:02]} (34... Nf5 $15 35. Ra4 Re8 36. Rxa6 Nxg3) 35. Rb4 {[%emt 0:00:10]} Rxb4+ {[%emt 0:00:10]} 36. axb4 {[%emt 0:00:01][%mdl 4096] Endgame KRN-KRN} Nf5 {[%emt 0:00:04] [#]} (36... a5 $14) 37. Nc6 {[%emt 0:00:23]} (37. g4 $1 $16 {[%cal Rg4f5]} Nd4 38. Rd2) 37... Rd7 {[%emt 0:00:08]} (37... Rd6 $11 38. Ne7+ Nxe7 39. Rxe7 d4) 38. g4 {[%emt 0:00:12]} Nd6 {[%emt 0:00:01]} (38... Rd6 $16) 39. Ne7+ $18 {[%emt 0:00:11]} Kf7 {[%emt 0:00:02]} 40. Nxd5 {[%emt 0:00:04]} Nb5 $2 {[%emt 0:00:11]} (40... a5 41. Kb3 (41. bxa5 Nc4+ {[%mdl 64] Discovered Attack} 42. Kc3 Nxa5 $18) (41. Rf2+ Ke6 $16) 41... axb4 42. Kxb4 Nb7) 41. c4 {[%emt 0:00:05]} Nd4 {[%emt 0:00:05]} 42. Rf2+ {[%emt 0:00:05]} Ke6 {[%emt 0:00:01]} 43. Kc3 {[%emt 0:00:11]} Ke5 {[%emt 0:00:02]} 44. Rd2 {[%emt 0:00:15]} Nf3 {[%emt 0:00:13]} (44... Nc6 $142 45. Ra2 Ra7) 45. Rf2 $2 {[%emt 0:00:03]} ({White should try} 45. Re2+ $18 Kd6 46. Nb6) 45... Ng5 $2 {[%emt 0:00:02][%mdl 8192]} (45... Nd4 $11 {and Black is okay.} 46. Rf1 Nc6 47. Rf5+ Ke4 48. Rf4+ Ke5) 46. Re2+ {[%emt 0:00:10]} Kd6 {[%emt 0:00:03]} 47. Nb6 {[%emt 0:00:09]} Rf7 {[%emt 0:00:06]} 48. c5+ {[%emt 0:00:04]} Kc6 {[%emt 0:00:03]} 49. Nc4 {[%emt 0:00:06]} Rf1 {[%emt 0:00:06]} 50. Ne5+ {[%emt 0:00:15]} Kd5 {[%emt 0:00:04]} 51. Nd3 {[%emt 0:00:06]} (51. Ng6 $16 {[%cal Rg6e7]} Ne4+ 52. Kb2) 51... Ne4+ $14 {[%emt 0:00:10]} 52. Kb3 {[%emt 0:00:03]} Rb1+ {[%emt 0:00:04]} 53. Kc2 {[%emt 0:00:03]} Rg1 $2 {[%emt 0:00:06][%mdl 8192]} (53... Rf1 $16) 54. Nf4+ $18 {[%emt 0:00:02]} Kd4 {[%emt 0:00:04]} 55. Ne6+ {[%emt 0:00:02]} Ke5 {[%emt 0:00:07]} 56. Nxg7 {[%emt 0:00:12]} Rxg4 {[%emt 0:00:03]} 57. Ne8 {[%emt 0:00:02] [#] aiming for c6.} Ke6 {[%emt 0:00:09]} 58. Nd6 {[%emt 0:00:07]} Kd5 {[%emt 0:00:03]} 59. Rxe4 {[%emt 0:00:08] KRN-KR} Rg2+ {[%emt 0:00:01]} 60. Kd3 {[%emt 0:00:02]} Rh2 {[%emt 0:00:01]} 61. Rd4+ {[%emt 0:00:04]} Kc6 {[%emt 0:00:01]} 62. Nf7 {[%emt 0:00:06]} Rxh5 {[%emt 0:00:03]} 63. Rd6+ {[%emt 0:00:02]} Kb5 {[%emt 0:00:06]} 64. Rxh6 {[%emt 0:00:03] White mates.} Rxh6 {[%emt 0:00:10]} 65. Nxh6 {[%emt 0:00:02] KN-KP} a5 {[%emt 0:00:00]} 66. Nf5 {[%emt 0:00:13]} axb4 {[%emt 0:00:14]} 67. Kd4 {[%emt 0:00:07]} b3 {[%emt 0:00:03]} 68. Nd6+ {[%emt 0:00:01]} Kb4 {[%emt 0:00:09]} 69. Nc4 {[%emt 0:00:03]} Kb5 {[%emt 0:00:03]} 70. Nb2 {[%emt 0:00:01]} Kb4 {[%emt 0:00:01]} 71. c6 {[%emt 0:00:05] Quite a comeback for White.   Weighted Error Value: White=0.37/Black=0.39} 1-0

[Event "Rapid Shavuot-A 2023"]
[Site "Ramat Gan"]
[Date "2023.05.25"]
[Round "3.1"]
[White "Zanan, Evgeny"]
[Black "Veinberg, Nimrod"]
[Result "1/2-1/2"]
[ECO "A29"]
[WhiteElo "2485"]
[BlackElo "2410"]
[Annotator "RC"]
[PlyCount "21"]
[EventDate "2023.05.19"]
[EventType "swiss"]
[EventCountry "ISR"]
[SourceTitle "playchess.com"]
[Source "ChessBase"]
[SourceQuality "1"]
[TimeControl "900+5"]

1. c4 {[%emt 0:00:03]} e5 {[%emt 0:00:01]} 2. Nc3 {[%emt 0:00:01]} Nf6 {[%emt 0:00:01]} 3. g3 {[%emt 0:00:02]} d5 {[%emt 0:00:01]} 4. cxd5 {[%emt 0:00:02]} Nxd5 {[%emt 0:00:01]} 5. Bg2 {[%emt 0:00:01]} Nb6 {[%emt 0:00:03]} 6. Nf3 {[%emt 0:00:04]} Nc6 {[%emt 0:00:01]} 7. O-O {[%emt 0:00:03]} Be7 {[%emt 0:00:01]} 8. d3 {[%emt 0:00:12]} O-O {[%emt 0:00:03]} 9. Be3 {[%emt 0:00:05]} Re8 {[%emt 0:00:08]} 10. Rc1 {[%emt 0:00:05]} Bf8 {[%emt 0:00:02]} 11. a3 {[%emt 0:00:03]} 1/2-1/2

[Event "Rapid Shavuot-A 2023"]
[Site "Ramat Gan"]
[Date "2023.05.25"]
[Round "3.2"]
[White "Aizenberg, Benny"]
[Black "Bronstein, Or"]
[Result "1-0"]
[ECO "B90"]
[WhiteElo "2403"]
[BlackElo "2463"]
[Annotator "TA"]
[PlyCount "81"]
[EventDate "2023.05.19"]
[EventType "swiss"]
[EventCountry "ISR"]
[SourceTitle "playchess.com"]
[Source "ChessBase"]
[SourceQuality "1"]
[TimeControl "900+5"]

{[%evp 12,81,20,12,8,4,8,0,21,-43,0,22,14,14,16,-27,-39,-18,-23,-54,-54,-117,-112,-110,-97,-133,-133,-242,-219,-255,-248,-279,-181,-403,-404,-399,-379,-305,-312,-339,-191,-212,-13,-6,-8,0,22,-13,155,107,195,194,371,370,316,255,414,415,825,818,779,782,1120,1101,1459,1370,5385,5385,5002,4766,2019,1058]} 1. e4 {[%emt 0:00:02]} c5 {[%emt 0:00:01]} 2. Nf3 {[%emt 0:00:01]} d6 {[%emt 0:00:01]} 3. d4 {[%emt 0:00:01]} cxd4 {[%emt 0:00:01]} 4. Nxd4 {[%emt 0:00:02]} Nf6 {[%emt 0:00:01]} 5. Nc3 {[%emt 0:00:01]} a6 {[%emt 0:00:01]} 6. h3 {[%emt 0:00:02]} e5 {[%emt 0:00:14]} 7. Nb3 {[%emt 0:00:01]} Be6 {[%emt 0:00:08] 7...Be7 is the hot move. B90: Sicilian Najdorf: Unusual White 6th moves, 6 Be3 Ng4 and 6 Be3 e5.} 8. Be3 {[%emt 0:00:05]} Be7 {[%emt 0:00:11]} 9. Qf3 {[%emt 0:00:08]} b5 {[%emt 0:01:06] The position is equal.} 10. O-O-O {[%emt 0:00:08]} (10. a4 $11) 10... b4 {[%emt 0:00:01]} (10... O-O $15) 11. Nd5 $11 {[%emt 0:00:04]} Nxd5 {[%emt 0:00:02]} 12. exd5 {[%emt 0:00:02]} Bc8 {[%emt 0:00:01] [#]} 13. Qg3 $146 {[%emt 0:00:29]} ({Predecessor:} 13. g4 O-O 14. Kb1 a5 15. Bd3 Ba6 16. Nd2 Nd7 17. Ne4 a4 18. h4 Qc7 19. Qe2 Bxd3 20. Qxd3 {0-1 Krzywda,A (2235)-Kelires,A (2538) EU-ch 23rd Vrnjacka Banja 2023 (1)}) 13... O-O {[%emt 0:00:28]} 14. f4 {[%emt 0:00:04]} Nd7 {[%emt 0:03:38][%cal Bb8d7,Bd7e5,Be5g6,Bg6e5][%mdl 32]} 15. Bd3 {[%emt 0:00:12]} a5 {[%emt 0:00:22][%cal Ba6a5,Ba5a4][%mdl 32]} 16. Rhf1 {[%emt 0:00:23]} ({White should try} 16. fxe5 $15 Nxe5 17. Nd4) 16... a4 $17 {[%emt 0:01:12]} 17. Nd2 {[%emt 0:00:02]} Qc7 {[%emt 0:01:12]} 18. fxe5 {[%emt 0:01:59]} Nxe5 {[%emt 0:00:07]} 19. Bh6 {[%emt 0:00:22] [#]} (19. Kb1 $17 {was called for.}) 19... Ng6 $1 $19 {[%emt 0:01:37]} (19... Nxd3+ 20. Kb1 g6 21. Qxd3 $14 (21. Bxf8 Nxb2 22. Bxe7 Nxd1 $15)) 20. Bg5 {[%emt 0:00:13]} Bxg5 {[%emt 0:00:43]} 21. Qxg5 {[%emt 0:00:03]} Ne5 {[%emt 0:00:56]} 22. Be2 {[%emt 0:03:19]} (22. Nc4 {is a better defense.} b3 23. axb3 (23. cxb3 $2 Nxd3+ 24. Kb1 axb3 $19) 23... Nxd3+ 24. cxd3 (24. Rxd3 $2 axb3 25. Rg3 f5 $19)) 22... a3 {[%emt 0:00:30] ( -> ...axb2+)} 23. b3 {[%emt 0:01:55]} Qc3 {[%emt 0:00:01][%csl Ga3][%cal Rc3b2]} 24. Ne4 {[%emt 0:00:02]} Qb2+ {[%emt 0:00:04]} 25. Kd2 {[%emt 0:00:01][%cal Bc1d2,Bd2e1,Be1e2,Be2f1][%mdl 32]} Ra5 {[%emt 0:03:05]} (25... Qxa2 $2 26. Rb1) (25... f5 $2 26. Nxd6 Qc3+ 27. Kc1 Qa1+ 28. Kd2 Qc3+ 29. Kc1 $19) (25... Qd4+ $142 26. Bd3 Nxd3 {[%mdl 64] Remove Defender} 27. cxd3 Qb2+ 28. Ke3 Qxa2 29. Nxd6 f6) 26. Ke1 {[%emt 0:00:46]} Qxc2 $2 {[%emt 0:00:35]} (26... Qxa2 $19 27. Qc1 Bb7 28. Nxd6 Bxd5) 27. Nxd6 $11 {[%emt 0:00:07][%cal Be4d6,Bd6f5,Bf5h6,Bh6f7,Bf7d8][%mdl 32]} Qc3+ {[%emt 0:00:09]} 28. Qd2 {[%emt 0:00:14] Really sharp!} Qg3+ {[%emt 0:00:22]} ({Don't take} 28... Rxd5 29. Qxc3 Rxd1+ 30. Kxd1 $14) 29. Rf2 {[%emt 0:00:01]} Ba6 $2 {[%emt 0:00:20]} (29... Nf3+ $11 30. Bxf3 Qxd6) 30. Qxb4 {[%emt 0:00:19]} (30. Nf5 $142 Qh2 31. Ne7+ (31. Qxb4 Qg1+ 32. Rf1 Qxg2 $11) 31... Kh8 32. Qf4 Qxf4 33. Rxf4) 30... Bxe2 {[%emt 0:00:11]} (30... Nd3+ $16 31. Rxd3 (31. Bxd3 Rxd5 32. Bxh7+ {[%mdl 64] Discovered Attack} Kxh7 $14) 31... Bxd3 32. Qxa5 Bxe2) 31. Kxe2 $18 {[%emt 0:00:02]} Ra6 $2 {[%emt 0:00:20]} (31... Rfa8 32. Qf4 Qxf4 33. Rxf4 Rc5) 32. Nf5 {[%emt 0:00:11] Active counter play!} Qg5 {[%emt 0:00:00]} 33. Kf1 {[%emt 0:00:16] d6 would be deadly.} Re8 $2 {[%emt 0:00:00]} (33... Rf6) 34. d6 {[%emt 0:00:11] Threatens to win with Ne7+.} g6 {[%emt 0:00:06]} (34... Kh8 $142 35. Qc5 Nd7) 35. Qb5 {[%emt 0:00:15][%csl LRa6,LRe8][%cal Rb5e8] White is clearly winning.} Raa8 {[%emt 0:00:01]} 36. d7 {[%emt 0:00:51]} Re6 {[%emt 0:00:07] [#]} 37. Nh6+ $1 {[%emt 0:01:36][%mdl 576] Deflection, Promotion} Kg7 {[%emt 0:00:08] [#]} (37... Qxh6 38. d8=R+) 38. Nxf7 $1 {[%emt 0:00:13][%mdl 576] Promotion} Qe7 {[%emt 0:00:01]} (38... Qe3 39. d8=Q) 39. d8=Q {[%emt 0:00:17]} Rxd8 {[%emt 0:00:08]} 40. Nxd8 {[%emt 0:00:02]} Rd6 {[%emt 0:00:07]} 41. Re1 {[%emt 0:03:28] Ingenious play by Aizenberg!   Weighted Error Value: White=0.43/Black=0.52} 1-0

[Event "Rapid Shavuot-A 2023"]
[Site "Ramat Gan"]
[Date "2023.05.25"]
[Round "3.3"]
[White "Levin, Guy"]
[Black "Rozen, Eytan"]
[Result "0-1"]
[ECO "A92"]
[WhiteElo "2424"]
[BlackElo "2417"]
[Annotator "TA"]
[PlyCount "142"]
[EventDate "2023.05.19"]
[EventType "swiss"]
[EventCountry "ISR"]
[SourceTitle "playchess.com"]
[Source "ChessBase"]
[SourceQuality "1"]
[TimeControl "900+5"]

{[%evp 11,142,39,45,26,20,20,24,18,17,28,33,30,32,30,30,16,42,7,3,21,15,18,12,-10,0,0,0,-5,24,-8,-8,-18,-11,-13,-14,-17,-9,-7,107,0,0,0,0,0,0,0,0,0,0,0,0,0,0,-16,-16,-16,-16,-16,-16,-16,-1,-23,-23,-23,-23,-22,-2,-2,-2,-22,-22,-22,-23,-23,-23,-52,-52,-52,-52,-52,-52,-52,-52,-52,-12,-52,-52,-52,-8,-8,-8,-52,-52,-52,-8,-52,-52,-52,-52,-52,-52,-52,-8,-8,0,-52,-8,-52,-52,-192,-177,-233,-233,-225,-225,-29975,-29976,-29976,-29978,-29978,-29978,-29984,-29982,-29985,-29984,-29984,-29984,-29986,-29987,-29987,-29988,-29988,-29985]} 1. d4 {[%emt 0:00:02]} e6 {[%emt 0:00:01]} 2. Nf3 {[%emt 0:00:05]} f5 {[%emt 0:00:12]} 3. c4 {[%emt 0:00:04]} Nf6 {[%emt 0:00:03]} 4. Nc3 {[%emt 0:00:01]} Be7 {[%emt 0:00:10]} 5. g3 {[%emt 0:00:09]} O-O {[%emt 0:00:02]} 6. Bg2 {[%emt 0:00:00]} Ne4 {[%emt 0:00:11]} 7. Qc2 {[%emt 0:00:27] A92: Classical Dutch: Classical Stonewall (with ...Be7): Early deviations.} Nxc3 {[%emt 0:00:47]} 8. Qxc3 {[%emt 0:00:01]} d6 {[%emt 0:00:18]} 9. h4 {[%emt 0:00:25] White has an edge.} Bf6 {[%emt 0:00:13]} 10. Bg5 {[%emt 0:00:02] [#]} Nc6 $146 {[%emt 0:00:06]} ({Predecessor:} 10... Nd7 11. O-O-O h6 12. Bxf6 Qxf6 13. h5 c6 14. e3 e5 15. Nh4 Re8 16. Bh3 Nf8 {1-0 Sanders,I (1989)-Alderson,J Leicester Atkins Memorial op 2010 (3)}) 11. O-O-O {[%emt 0:00:16]} h6 {[%emt 0:00:11]} 12. Bxf6 {[%emt 0:00:36]} Qxf6 {[%emt 0:00:02]} 13. e3 {[%emt 0:00:09]} a5 {[%emt 0:00:55]} 14. a3 {[%emt 0:03:19]} e5 {[%emt 0:00:40]} 15. h5 {[%emt 0:01:04]} e4 {[%emt 0:01:53]} 16. Nh4 {[%emt 0:00:33]} Ne7 {[%emt 0:00:03]} 17. Bf1 {[%emt 0:00:39]} c6 {[%emt 0:00:28]} 18. Ng2 {[%emt 0:00:09]} Be6 {[%emt 0:00:06]} 19. Nf4 {[%emt 0:00:07]} Bf7 {[%emt 0:00:22][%cal Ob7b5]} 20. c5 {[%emt 0:01:07]} Nd5 {[%emt 0:00:27]} 21. Nxd5 {[%emt 0:00:18]} cxd5 {[%emt 0:00:02]} 22. Kb1 $1 {[%emt 0:01:16]} dxc5 {[%emt 0:03:23]} 23. Qxc5 {[%emt 0:00:02]} Rfc8 {[%emt 0:00:04]} 24. Qb5 {[%emt 0:00:06]} Rc6 {[%emt 0:01:10]} (24... Qd6 $11) 25. Be2 {[%emt 0:00:39]} ({White has to play} 25. Qxb7 $16 Rcc8 26. Rc1) 25... Rb6 $11 {[%emt 0:00:06]} 26. Qc5 {[%emt 0:00:13]} Rc6 {[%emt 0:00:01]} 27. Qb5 {[%emt 0:00:04]} Rb6 {[%emt 0:00:12]} 28. Qd7 {[%emt 0:01:00]} Qc6 {[%emt 0:01:46] Dodges Rc1} 29. Qxc6 {[%emt 0:00:12]} Rxc6 {[%emt 0:00:09]} 30. Bb5 {[%emt 0:00:46]} Rc7 {[%emt 0:00:28]} 31. Rc1 {[%emt 0:00:26]} Rac8 {[%emt 0:00:01]} 32. Bd7 {[%emt 0:00:18][%mdl 64] [#] Double Attack} Rxc1+ {[%emt 0:00:01]} 33. Rxc1 {[%emt 0:00:01]} Rxc1+ 34. Kxc1 {[%emt 0:00:01]} Bxh5 {[%emt 0:00:03]} 35. Bxf5 {[%emt 0:00:21][%mdl 4096] Endgame KB-KB} Kf7 {[%emt 0:00:14]} 36. Kd2 {[%emt 0:00:32]} Kf6 {[%emt 0:00:25]} 37. Bc8 {[%emt 0:00:15]} b6 {[%emt 0:00:01]} 38. b4 {[%emt 0:00:51]} axb4 {[%emt 0:00:15]} 39. axb4 {[%emt 0:00:06]} Bf7 {[%emt 0:00:15]} 40. Ke2 {[%emt 0:00:15]} Be6 {[%emt 0:00:03]} 41. Bb7 {[%emt 0:00:10]} h5 {[%emt 0:00:41]} 42. f3 {[%emt 0:00:12]} exf3+ {[%emt 0:00:07]} 43. Kxf3 {[%emt 0:00:01]} g5 {[%emt 0:00:46]} 44. e4 {[%emt 0:00:01]} dxe4+ {[%emt 0:00:05]} 45. Kxe4 {[%emt 0:00:08]} h4 {[%emt 0:00:32]} 46. gxh4 {[%emt 0:00:02]} gxh4 {[%emt 0:00:05]} 47. Kf4 {[%emt 0:00:30]} Bd7 {[%emt 0:00:31]} 48. Be4 {[%emt 0:00:19]} h3 {[%emt 0:00:10]} 49. Kg3 {[%emt 0:00:07]} Ke7 {[%emt 0:00:16]} 50. Bf3 {[%emt 0:00:34]} Kd6 {[%emt 0:00:04]} 51. Be4 {[%emt 0:00:01]} Be6 {[%emt 0:00:02]} 52. Bf3 {[%emt 0:00:07]} Bc8 {[%emt 0:00:01]} 53. Be4 {[%emt 0:00:02]} Bd7 {[%emt 0:00:01]} 54. Bf3 {[%emt 0:00:02]} Bc6 {[%emt 0:00:09] ( -> ...Bxf3)} 55. Bh5 {[%emt 0:00:05]} (55. Bxc6 {leads to mate.} Kxc6 56. Kh2 b5 57. Kxh3 Kd5 58. Kg3 Kxd4 59. Kf2 Kc4 60. Ke3 Kxb4 61. Kd4 Kb3 62. Kd3 b4 63. Kd2 Ka2 64. Ke2 b3 65. Kf3 b2 66. Kg4 b1=Q 67. Kg5 Kb3 68. Kg4 Kc4 69. Kg5 Kd5 70. Kf6 Kd6 71. Kg5 Qe4 72. Kf6 Qg4 73. Kf7 Qg5 74. Kf8 Ke6 75. Ke8 Qg8#) 55... Bg2 {[%emt 0:00:13]} 56. Bf7 {[%emt 0:00:02]} Bf1 {[%emt 0:00:03]} (56... Bd5 $5 {[%cal Rd5f7]} 57. Bh5 Be4 $15) 57. Bg8 {[%emt 0:00:09]} Bg2 {[%emt 0:00:05]} 58. Bf7 $1 {[%emt 0:00:01]} Kc6 {[%emt 0:00:04]} (58... Bd5 $5 {[%cal Rd5f7]} 59. Bg6 Bc4 $15) 59. Bc4 {[%emt 0:00:11]} Bd5 {[%emt 0:00:08] Prevents Be6.} 60. Be2 {[%emt 0:00:09] [#] This move loses the game for White.} ({White must play} 60. b5+ $1 $15 Kd6 61. Bd3) 60... Be6 $1 $19 {[%emt 0:00:02]} 61. Bf3+ {[%emt 0:00:13]} (61. d5+ {keeps fighting.} Kxd5 62. Kh2) 61... Kb5 {[%emt 0:00:03]} 62. d5 {[%emt 0:00:01]} Bd7 {[%emt 0:00:03]} 63. Kf4 $2 {[%emt 0:00:04]} (63. d6 $19) 63... Kxb4 {[%emt 0:00:05] Black mates.} 64. Ke5 {[%emt 0:00:10]} Kc5 {[%emt 0:00:00]} 65. Ke4 {[%emt 0:00:00]} Kd6 {[%emt 0:00:13]} 66. Kd4 {[%emt 0:00:01]} Bb5 {[%emt 0:00:02]} 67. Ke4 {[%emt 0:00:09]} Bc4 {[%emt 0:00:07]} 68. Kd4 {[%emt 0:00:06]} Bf1 {[%emt 0:00:01]} 69. Ke3 {[%emt 0:00:06]} Bg2 {[%emt 0:00:03]} 70. Bxg2 {[%emt 0:00:02]} hxg2 {[%emt 0:00:24]} 71. Kf2 Kxd5 {[%emt 0:00:00] Weighted Error Value: White=0.15 (very precise) /Black=0.09 (flawless)} 0-1

[Event "Rapid Shavuot-A 2023"]
[Site "Ramat Gan"]
[Date "2023.05.25"]
[Round "3.4"]
[White "Zemach, Nadav"]
[Black "Mesropov, Konstantin"]
[Result "1/2-1/2"]
[ECO "A90"]
[WhiteElo "2383"]
[BlackElo "2437"]
[Annotator "TA"]
[PlyCount "47"]
[EventDate "2023.05.19"]
[EventType "swiss"]
[EventCountry "ISR"]
[SourceTitle "playchess.com"]
[Source "ChessBase"]
[SourceQuality "1"]
[TimeControl "900+5"]

{[%evp 15,47,25,25,28,37,31,39,35,35,0,35,33,70,62,71,0,0,0,0,-166,-163,-163,-161,-378,-394,-380,0,0,0,-393,-380,-394,0,-183]} 1. d4 {[%emt 0:00:02]} d5 {[%emt 0:00:09]} 2. c4 {[%emt 0:00:01]} e6 {[%emt 0:00:04]} 3. Nf3 {[%emt 0:00:01]} c6 {[%emt 0:00:02]} 4. Nbd2 {[%emt 0:00:01][%cal Bb1d2,Bd2f3,Bf3e5][%mdl 32]} f5 {[%emt 0:00:03]} 5. g3 {[%emt 0:00:02]} Nf6 {[%emt 0:00:01]} 6. Bg2 {[%emt 0:00:02]} Bd6 {[%emt 0:00:02]} 7. Ne5 {[%emt 0:00:26]} O-O {[%emt 0:00:06]} 8. O-O {[%emt 0:00:09]} Nbd7 {[%emt 0:00:59]} 9. Ndf3 {[%emt 0:00:30] A90: Dutch Defence: Miscellaneous and Modern Stonewall (with ...Bd6).} Ne4 {[%emt 0:00:02]} 10. Qb3 {[%emt 0:00:06] [#]} Qe7 $146 {[%emt 0:00:45]} ({Predecessor:} 10... Ndf6 11. Nd3 Nh5 12. Nfe5 Kh8 13. f3 Nexg3 14. hxg3 Nxg3 15. Rf2 Qh4 16. Bf4 Nh5 {1-0 Kaabi,M (2363)-Zaibi,A (2271) Algiers Ameyar Memorial-A 11th 2012 (6)}) 11. Rd1 {[%emt 0:00:41] White is slightly better.} Ndf6 {[%emt 0:00:29]} 12. h3 {[%emt 0:00:57]} Rb8 {[%emt 0:01:24]} (12... c5 $5 {[%cal Rc5d4]}) 13. Nd3 {[%emt 0:01:55]} Nh5 {[%emt 0:01:36]} 14. Nfe5 {[%emt 0:00:59]} Bd7 {[%emt 0:00:25]} 15. g4 {[%emt 0:01:28]} (15. c5 $16 Bc7 16. Qa4) 15... fxg4 $11 {[%emt 0:05:34]} 16. hxg4 {[%emt 0:00:03]} Qh4 {[%emt 0:01:24] And now ...dxc4 would win.} 17. gxh5 $2 {[%emt 0:01:11] [#]} (17. Nxd7 Qh2+ 18. Kf1 Nhg3+ 19. Ke1 Qg1+) (17. f3 $11 {and White has nothing to worry.}) 17... dxc4 $1 $19 {[%emt 0:00:51]} 18. Qxc4 {[%emt 0:00:21]} Rxf2 {[%emt 0:00:21][%cal Ob8f8]} 19. Nxf2 $2 {[%emt 0:01:32]} (19. Nxd7 $2 Qh2#) (19. Rf1 Rxf1+ 20. Bxf1 (20. Kxf1 Bxe5 21. Bxe4 Rf8+ 22. Bf3 b5 $19)) 19... Qxf2+ {[%emt 0:00:06]} 20. Kh2 {[%emt 0:00:11]} Qh4+ {[%emt 0:01:36]} 21. Kg1 {[%emt 0:00:02] [#] Be3 would be deadly.} Qf2+ {[%emt 0:00:10]} 22. Kh2 $1 {[%emt 0:00:01] aiming for Qd3.} (22. Kh1 $2 Rf8 $19) 22... Qg3+ {[%emt 0:00:10]} 23. Kg1 {[%emt 0:00:02]} Qf2+ {[%emt 0:00:19]} ({Not} 23... Bxe5 24. dxe5 Qf2+ 25. Kh2 Qh4+ 26. Kg1 Qf2+ 27. Kh2 Qh4+ 28. Kg1 Qf2+ $11) (23... Rf8 $142 $1 {[%cal Rf8f2] ( -> ...Rf2!)} 24. Qb3 (24. Nxd7 $2 Qh2#) 24... Qf2+ 25. Kh2 (25. Kh1 $2 Rf5 $19) 25... Rf5) 24. Kh2 $1 {[%emt 0:00:01] Weighted Error Value: White=0.43/Black=0.46} ({Wrong is} 24. Kh1 $2 Rf8 $19) 1/2-1/2